bitfinex-derivatives/quotes_ETHF0:USTF0_20250410
["timestamp","ask_amount","ask_price","bid_price","bid_amount"]
[1744258753506,1.5241,1613.1,1613.0,45.25747591]
[1744258754456,2.76441,1613.1,1613.0,44.01708591]
[1744258754649,7.76441,1613.1,1613.0,0.00928591]
[1744258754852,1.24062,1612.7,1612.6,5.97566]
[1744258755056,1.24062,1612.7,1612.6,44.0078]
[1744258755352,1.24062,1612.7,1612.6,1.2407]
[1744258755661,1.24062,1612.7,1612.6,42.0407]
[1744258756055,2.89802,1612.7,1612.6,42.0407]
[1744258756598,7.07454,1612.9,1612.8,1.24055]
[1744258756751,8.93522,1612.9,1612.6,40.8]
[1744258756950,1.24062,1612.7,1612.6,42.04066]
[1744258757447,2.90242,1612.7,1612.6,42.04066]
[1744258758359,8.73642,1612.7,1612.6,42.04066]
[1744258758561,7.4958,1612.7,1612.6,42.04066]
[1744258759161,8.73642,1612.7,1612.6,42.04066]
[1744258760256,8.73642,1612.7,1612.6,40.8]
[1744258760461,8.73642,1612.7,1612.6,42.0407]
[1744258760963,1.2407,1612.6,1612.5,0.00928591]
[1744258761150,4.3036,1612.6,1612.5,0.00928591]
[1744258761450,4.3036,1612.6,1612.5,1.25006591]
[1744258762447,4.3036,1612.6,1612.5,0.00928591]
[1744258763347,3.0629,1612.6,1612.5,1.25006591]
[1744258763651,10.324,1612.7,1612.6,1.2407]
[1744258763846,11.915,1612.7,1612.6,2.82]
[1744258764045,1.2407,1612.6,1612.5,0.00928591]
[1744258764244,8.6657,1612.6,1612.5,0.00928591]
[1744258765525,13.6657,1612.6,1612.5,5.91e-06]
[1744258765725,16.8735,1612.6,1612.5,5.91e-06]
[1744258767028,16.8735,1612.6,1611.9,42.4826]
[1744258767029,3.10214,1612.4,1611.9,40.8]
[1744258767234,3.10214,1612.4,1611.7,6.13179]
[1744258767235,1.24132,1611.8,1611.7,6.13179]
[1744258767431,1.24132,1611.8,1611.7,4.8904]
[1744258767741,1.24132,1611.8,1611.7,46.93179]
[1744258767929,5.83399409,1611.9,1611.8,1.24132]
[1744258768228,5.83399409,1611.9,1611.8,2.92392]
[1744258769034,7.07523409,1611.9,1611.8,2.92392]
[1744258769235,8.71133409,1611.9,1611.8,1.6826]
[1744258769436,10.17413409,1611.9,1611.8,1.6826]
[1744258770139,8.93289409,1611.9,1611.8,2.92392]
[1744258770330,5.83399409,1611.9,1611.8,2.92392]
[1744258770536,5.83399409,1611.9,1611.8,10.81522]
[1744258771042,7.07523409,1611.9,1611.8,1.6826]
[1744258771336,11.96109409,1611.9,1611.8,2.92392]
[1744258771743,10.32499409,1611.9,1611.8,2.92392]
[1744258771926,5.83399409,1611.9,1611.8,2.92392]
[1744258772131,5.83399409,1611.9,1611.8,10.96202]
[1744258772743,5.83399409,1611.9,1611.8,5.96202]
[1744258772939,0.00928591,1612.0,1611.9,1.24124]
[1744258773139,0.00928591,1612.0,1611.9,6.04554]
[1744258774140,0.00928591,1612.0,1611.9,11.04554]
[1744258774539,0.00928591,1612.0,1611.9,15.53754]
[1744258775844,5.83399409,1612.2,1612.1,1.24108]
[1744258776042,13.17615409,1612.6,1612.5,1.24078]
[1744258776535,8.68415409,1612.6,1612.5,1.24078]
[1744258776742,5.83399409,1612.6,1612.5,2.81998]
[1744258778148,0.00928591,1612.7,1612.5,1.5792]
[1744258778352,0.00928591,1612.7,1612.6,7.4683]
[1744258778643,0.00928591,1612.7,1612.6,8.946]
[1744258778845,0.00928591,1612.7,1612.6,54.746]
[1744258779348,0.00928591,1612.7,1612.6,49.746]
[1744258780350,0.00928591,1612.7,1612.6,54.746]
[1744258780652,0.00928591,1612.7,1612.6,49.746]
[1744258780951,0.00928591,1612.7,1612.6,54.746]
[1744258781142,5.83399409,1612.9,1612.8,1.24055]
[1744258781339,5.83399409,1612.9,1612.8,4.44835]
[1744258781852,11.77995409,1613.2,1613.1,1.24031]
[1744258782045,11.77995409,1613.2,1613.0,4.44813]
[1744258782251,1.24031,1613.1,1613.0,0.00928591]
[1744258782453,2.92421,1613.1,1613.0,0.00928591]
[1744258782747,7.92421,1613.1,1613.0,0.00928591]
[1744258786455,7.92421,1613.1,1613.0,1.24967591]
[1744258787755,13.75820409,1613.1,1613.0,1.24967591]
[1744258790059,13.75820409,1613.1,1613.0,0.00928591]
[1744258791059,13.75820409,1613.1,1613.0,1.24967591]
[1744258791259,8.75820409,1613.1,1613.0,1.24967591]
[1744258792461,7.51789409,1613.1,1613.0,1.24967591]
[1744258792651,8.75820409,1613.1,1613.0,1.24967591]
[1744258792851,13.34679409,1613.2,1613.0,2.83237591]
[1744258793059,8.85579409,1613.2,1613.1,1.24031]
[1744258793248,10.09603409,1613.2,1613.1,2.80361]
[1744258793453,8.85579409,1613.2,1613.1,2.80361]
[1744258794658,10.51539409,1613.2,1613.1,2.80361]
[1744258794863,4.85300016,1613.3,1613.2,1.24024]
[1744258795163,4.85300016,1613.3,1613.2,7.53094]
[1744258795365,4.85300016,1613.3,1613.2,13.94274]
[1744258796262,3.35010016,1613.3,1613.2,18.42874]
[1744258796559,7.25735269,1613.4,1613.3,1.24016]
[1744258796560,1.65305016,1613.4,1613.3,1.24016]
[1744258796757,1.65305016,1613.4,1613.3,2.80316]
[1744258797065,1.65305016,1613.4,1613.3,7.80316]
[1744258797865,0.09144016,1613.4,1613.3,7.80316]
[1744258799260,0.09144016,1613.4,1613.3,48.60316]
[1744258800461,4.08623876,1613.6,1613.3,53.359]
[1744258800666,1.22316876,1613.6,1613.5,1.24001]
[1744258800868,9.03853961,1613.7,1613.6,1.23993]
[1744258801168,9.03853961,1613.7,1613.6,9.00393]
[1744258801366,1.5694,1614.1,1614.0,1.23962]
[1744258801572,1.5694,1614.1,1614.0,4.44742]
[1744258802266,7.31419409,1614.3,1614.2,1.23947]
[1744258802465,8.55358409,1614.3,1614.2,1.23947]
[1744258803074,8.55365409,1614.3,1614.1,2.89769]
[1744258803369,1.23955,1614.1,1614.0,3.2078]
[1744258803769,1.6184,1614.2,1614.0,4.44742]
[1744258803770,2.85793,1614.2,1614.0,4.44742]
[1744258804069,2.68585,1614.1,1614.0,3.2078]
[1744258804268,3.0647,1614.1,1614.0,4.44742]
[1744258804669,7.31419409,1614.3,1614.2,1.23947]
[1744258804868,1.6184,1614.2,1614.1,1.23949]
[1744258805067,7.25564662,1614.4,1614.3,1.23939]
[1744258805277,7.25564662,1614.4,1614.3,4.44719]
[1744258806263,1.5948,1614.5,1614.4,1.23932]
[1744258807065,3.0391,1614.7,1614.6,1.23916]
[1744258807466,1.5948,1614.8,1614.7,1.23909]
[1744258807669,2.78062,1615.2,1615.0,1.23881]
[1744258807965,4.37542,1615.2,1615.0,1.23881]
[1744258808172,4.37542,1615.2,1615.0,42.03881]
[1744258808366,4.37542,1615.2,1615.0,43.69301]
[1744258808671,1.23878,1615.1,1615.0,42.4542]
[1744258808874,1.6697,1615.1,1615.0,43.69306]
[1744258809573,11.99888555,1615.3,1615.2,1.2387]
[1744258810268,11.99888555,1615.3,1615.2,7.3759]
[1744258810767,1.23863,1615.3,1615.2,1.6542]
[1744258810973,1.23863,1615.3,1615.1,3.2078]
[1744258811174,1.6697,1615.2,1615.1,4.862]
[1744258811875,1.6697,1615.2,1615.1,3.2078]
[1744258811876,2.9084,1615.2,1615.1,3.2078]
[1744258812273,7.9084,1615.2,1615.1,3.2078]
[1744258812776,2.9084,1615.2,1615.1,3.2078]
[1744258813480,2.9084,1615.2,1615.1,4.44658]
[1744258813969,2.9084,1615.2,1615.1,3.2078]
[1744258814174,2.9084,1615.2,1615.1,4.44658]
[1744258814570,16.98069409,1615.2,1614.9,0.00928591]
[1744258814779,1.23886,1615.0,1614.9,0.00928591]
[1744258814978,1.23886,1615.0,1614.9,1.24821591]
[1744258815170,4.21596,1615.0,1614.9,42.04821591]
[1744258816282,4.21596,1615.0,1614.9,40.80928591]
[1744258817782,9.21596,1615.0,1614.9,0.00928591]
[1744258818184,10.84686,1615.0,1614.9,0.00928591]
[1744258818384,5.84686,1615.0,1614.9,0.00928591]
[1744258818883,10.84686,1615.0,1614.9,0.00928591]
[1744258819084,16.68085409,1615.0,1614.9,0.00928591]
[1744258819274,15.44199409,1615.0,1614.5,0.6192]
[1744258819474,1.23916,1614.6,1614.5,0.6192]
[1744258819880,1.23916,1614.6,1614.5,41.4192]
[1744258820181,4.34806,1614.6,1614.5,41.4192]
[1744258820377,19.65905409,1614.6,1614.5,1e-08]
[1744258820773,1.23955,1614.1,1614.0,4.44739]
[1744258820970,1.23955,1614.1,1614.0,45.24739]
[1744258821187,1.23955,1614.1,1614.0,40.8]
[1744258821991,2.90465,1614.1,1614.0,40.8]
[1744258822179,1.23962,1614.0,1613.9,0.00928591]
[1744258822478,2.65972,1614.0,1613.9,0.00928591]
[1744258822683,4.32482,1614.0,1613.9,40.80928591]
[1744258824083,4.32482,1614.0,1613.9,42.04898591]
[1744258824683,4.32482,1614.0,1613.9,40.80928591]
[1744258825284,4.32482,1614.0,1613.9,42.04898591]
[1744258825875,4.32482,1614.0,1613.9,40.80928591]
[1744258827583,4.32482,1614.0,1613.9,42.04898591]
[1744258827972,4.32482,1614.0,1613.9,40.80928591]
[1744258828884,4.32482,1614.0,1613.9,0.00928591]
[1744258829384,8.80282,1614.0,1613.9,0.00928591]
[1744258829582,1.23978,1613.8,1613.7,3.2078]
[1744258830276,2.90747,1613.9,1613.8,1.23978]
[1744258830480,2.65978,1614.0,1613.9,1.2397]
[1744258830683,8.74130409,1614.1,1614.0,1.23962]
[1744258830882,5.956,1614.2,1614.0,1.23962]
[1744258830883,2.66121,1614.3,1614.2,1.23947]
[1744258831083,7.50169409,1614.5,1614.1,4.7945]
[1744258831287,1.23942,1614.3,1614.2,2.82609]
[1744258831681,1.23942,1614.3,1614.2,1.5867]
[1744258832184,1.23962,1614.1,1614.0,1.23959]
[1744258832381,1.23962,1614.0,1613.9,4.44745]
[1744258832577,1.23962,1614.0,1613.9,6.03415]
[1744258832890,2.90731,1614.1,1614.0,1.23962]
[1744258833082,2.90731,1614.1,1614.0,2.87572]
[1744258833984,1.23952,1614.2,1614.1,1.23949]
[1744258834191,7.07342409,1614.3,1614.2,1.23947]
[1744258834691,7.07342409,1614.3,1614.2,2.87557]
[1744258834888,7.07342409,1614.3,1614.2,1.6361]
[1744258835189,1.23947,1614.2,1614.1,3.2078]
[1744258835388,1.23962,1614.0,1613.9,2.87571]
[1744258835988,1.23962,1614.0,1613.9,2.8758]
[1744258836188,1.23962,1614.0,1613.9,1.6361]
[1744258836693,2.84552,1614.0,1613.9,1.6361]
[1744258836892,1.2397,1613.9,1613.8,4.45681591]
[1744258837091,2.8456,1613.9,1613.8,6.01591591]
[1744258837292,2.8456,1613.9,1613.8,0.00928591]
[1744258838088,7.3236,1613.9,1613.8,0.00928591]
[1744258838287,16.91789409,1613.9,1613.3,1.24014]
[1744258838589,1.24008,1613.4,1613.3,2.79924]
[1744258838883,7.07404409,1613.5,1613.4,1.24008]
[1744258839088,7.07404409,1613.5,1613.4,2.79008]
[1744258839990,7.07404409,1613.5,1613.4,1.55]
[1744258840190,1.24008,1613.4,1613.3,45.25724591]
[1744258840390,2.87978,1613.4,1613.3,45.25724591]
[1744258841694,2.87978,1613.4,1613.3,40.80928591]
[1744258842594,2.87978,1613.4,1613.3,42.04944591]
[1744258842794,2.87978,1613.4,1613.3,43.72004591]
[1744258843395,7.07404409,1613.5,1613.4,1.24008]
[1744258843698,5.83399409,1613.5,1613.4,2.91068]
[1744258843898,7.07400409,1613.5,1613.4,2.91068]
[1744258844195,5.83399409,1613.5,1613.4,2.91068]
[1744258844992,7.07400409,1613.5,1613.4,2.91068]
[1744258845192,8.64220409,1613.5,1613.4,2.91068]
[1744258848801,1.24008,1613.4,1613.3,45.25718591]
[1744258848997,2.86988,1613.4,1613.3,43.59258591]
[1744258850208,7.07406409,1613.5,1613.4,1.24008]
[1744258850409,7.07406409,1613.5,1613.4,2.78328]
[1744258851403,8.70266409,1613.5,1613.4,2.78328]
[1744258852502,1.24008,1613.4,1613.3,42.04936591]
[1744258852702,2.86868,1613.4,1613.3,42.04936591]
[1744258853205,5.83399409,1613.5,1613.4,1.24008]
[1744258853403,5.83399409,1613.5,1613.4,2.82868]
[1744258854910,5.83399409,1613.5,1613.4,7.82868]
[1744258855105,0.00928591,1613.6,1613.5,1.24001]
[1744258855409,1.24921591,1613.6,1613.5,2.83671]
[1744258855602,0.00928591,1613.6,1613.5,6.04451]
[1744258855902,0.00928591,1613.6,1613.5,7.52561]
[1744258856310,1.24921591,1613.6,1613.5,7.52561]
[1744258856505,0.00928591,1613.6,1613.5,7.52561]
[1744258857110,1.24921591,1613.6,1613.5,2.83671]
[1744258857409,1.24008,1613.5,1613.4,1.24008]
[1744258857605,1.24008,1613.4,1613.3,43.62228591]
[1744258858416,4.39087,1613.5,1613.4,1.24008]
[1744258858810,1.24008,1613.4,1613.3,40.80928591]
[1744258859018,1.24008,1613.4,1612.8,3.1662]
[1744258859019,3.10042,1613.3,1612.8,3.1662]
[1744258859207,1.24055,1612.8,1612.7,4.44838]
[1744258859407,1.24055,1612.8,1612.7,45.24838]
[1744258859613,1.24055,1612.8,1612.7,44.0078]
[1744258859814,1.24055,1612.8,1612.7,45.24842]
[1744258860515,2.83255,1612.8,1612.7,44.0078]
[1744258860816,2.83255,1612.8,1612.7,45.24842]
[1744258861308,1.592,1612.8,1612.7,45.24842]
[1744258861511,2.83255,1612.8,1612.7,45.24842]
[1744258861812,1.592,1612.8,1612.7,45.24842]
[1744258862012,5.83399409,1613.0,1612.9,1.24047]
[1744258862208,7.07438409,1613.0,1612.9,1.24047]
[1744258862415,1.24047,1612.9,1612.8,2.84029]
[1744258862718,5.83399409,1613.0,1612.9,1.24047]
[1744258862907,5.83399409,1613.0,1612.9,6.04807]
[1744258863107,4.477,1613.2,1613.1,1.24031]
[1744258863414,4.477,1613.2,1613.1,4.44811]
[1744258863716,8.66617409,1613.3,1613.2,1.24024]
[1744258864218,8.66617409,1613.3,1613.2,1.679]
[1744258864419,1.24024,1613.2,1613.1,4.44806]
[1744258864714,1.24031,1613.1,1613.0,2.91934]
[1744258864914,2.78609,1613.2,1613.1,1.24031]
[1744258865415,14.33604732,1613.3,1613.2,1.24024]
[1744258865616,15.88184732,1613.3,1613.2,1.24024]
[1744258865812,7.26189323,1613.3,1613.2,1.24024]
[1744258866011,8.50205323,1613.3,1613.2,1.24024]
[1744258867518,1.24024,1613.2,1613.1,2.91929]
[1744258867718,2.77984,1613.2,1613.1,1.24029]
[1744258868415,1.24031,1613.1,1613.0,6.10111]
[1744258868614,2.77991,1613.1,1613.0,6.10111]
[1744258870219,2.77991,1613.1,1613.0,1.653]
[1744258870518,2.77991,1613.1,1613.0,2.89339]
[1744258872214,7.37359409,1613.1,1612.8,3.2078]
[1744258872411,1.24055,1612.8,1612.7,40.8]
[1744258872611,1.24062,1612.7,1612.6,4.45775591]
[1744258873107,16.55261409,1612.7,1612.6,0.00928591]
[1744258873512,18.15821409,1612.7,1612.6,0.00928591]
[1744258877416,1.24093,1612.3,1612.2,11.0958361]
[1744258878017,2.90523,1612.3,1612.2,11.0958361]
[1744258878215,2.90523,1612.3,1612.2,9.5377361]
[1744258878417,13.73922409,1612.3,1612.2,9.5377361]
[1744258878920,8.73922409,1612.3,1612.2,9.5377361]
[1744258880317,5.83399409,1612.3,1612.2,13.9865461]
[1744258880512,5.83399409,1612.3,1612.2,20.5477461]
[1744258880720,0.00928591,1612.4,1612.3,1.24093]
[1744258881020,0.00928591,1612.4,1612.3,4.24543]
[1744258881216,0.00928591,1612.4,1612.3,9.24543]
[1744258881419,0.00928591,1612.4,1612.3,13.72043]
[1744258881920,0.00928591,1612.4,1612.3,54.52043]
[1744258886525,0.00928591,1612.4,1612.3,45.04543]
[1744258887235,0.00928591,1612.4,1612.3,50.04543]
[1744258888122,5.83399409,1613.1,1612.3,54.8005]
[1744258888430,8.73340409,1613.1,1613.0,1.24039]
[1744258888736,21.88448732,1613.2,1613.1,1.24031]
[1744258888922,19.06588732,1613.2,1613.0,3.2078]
[1744258889126,1.24038,1613.1,1613.0,1.24036]
[1744258889429,2.89948,1613.1,1613.0,1.24036]
[1744258889630,1.24039,1613.0,1612.9,4.24921591]
[1744258889822,2.89949,1613.0,1612.9,4.24921591]
[1744258890017,1.6591,1613.0,1612.9,4.24921591]
[1744258890321,2.89949,1613.0,1612.9,4.24921591]
[1744258890730,2.89949,1613.0,1612.9,2.78451591]
[1744258891025,2.89949,1613.0,1612.9,0.00928591]
[1744258891431,4.46759,1613.0,1612.9,0.00928591]
[1744258891631,9.46759,1613.0,1612.9,0.00928591]
[1744258891935,9.46759,1613.0,1612.9,1.24975591]
[1744258892129,9.46759,1613.0,1612.9,0.00928591]
[1744258892331,4.46759,1613.0,1612.9,1.24975591]
[1744258892834,1.24033,1613.1,1613.0,1.24031]
[1744258893032,1.24033,1613.1,1613.0,2.91901]
[1744258893333,1.24039,1613.0,1612.9,1.24969591]
[1744258893536,2.85358,1613.1,1613.0,1.24039]
[1744258894335,1.6132,1613.1,1613.0,1.24039]
[1744258894635,1.6132,1613.1,1613.0,4.44819]
[1744258895436,11.80399409,1613.2,1613.1,1.24031]
[1744258895738,11.80399409,1613.2,1613.1,2.80851]
[1744258896032,13.04423409,1613.2,1613.1,2.80851]
[1744258896241,1.24031,1613.1,1613.0,3.2078]
[1744258896426,1.24039,1613.0,1612.9,2.81789591]
[1744258896628,2.76718,1613.1,1613.0,1.24039]
[1744258896933,11.80399409,1613.2,1613.1,1.24031]
[1744258897138,11.80399409,1613.2,1613.1,2.84891]
[1744258897341,13.04423409,1613.2,1613.1,2.84891]
[1744258897542,14.65033409,1613.2,1613.1,1.24031]
[1744258898031,14.65033409,1613.2,1613.1,2.84891]
[1744258899037,8.81634,1613.2,1613.1,2.84891]
[1744258899337,5.84328,1613.3,1613.2,1.24024]
[1744258899538,5.84328,1613.3,1613.2,6.05664]
[1744258900629,7.26189323,1613.6,1613.5,1.24001]
[1744258900937,7.26189323,1613.6,1613.5,4.44781]
[1744258901135,7.26189323,1613.6,1613.5,45.24781]
[1744258902530,8.50182323,1613.6,1613.5,45.24781]
[1744258902737,8.94069323,1613.6,1613.5,45.24781]
[1744258903141,1.6788,1613.6,1613.5,45.24781]
[1744258904234,2.91873,1613.6,1613.5,40.8]
[1744258904439,4.39243,1613.6,1613.5,40.8]
[1744258904639,1.24008,1613.4,1613.3,1.24014]
[1744258905040,1.24016,1613.3,1613.2,2.82279]
[1744258905237,1.24016,1613.3,1613.2,1.24019]
[1744258905640,2.91895,1613.4,1613.3,1.24016]
[1744258907340,1.24016,1613.3,1613.2,43.61448]
[1744258907642,4.23186,1613.3,1613.2,43.61448]
[1744258908341,4.23186,1613.3,1613.2,42.04018]
[1744258908541,2.9917,1613.3,1613.0,1.24032]
[1744258908741,1.24036,1613.1,1613.0,1.24032]
[1744258908941,1.24036,1613.1,1613.0,42.04032]
[1744258909240,2.79656,1613.1,1613.0,42.04032]
[1744258909442,2.79656,1613.1,1613.0,40.8]
[1744258909741,2.79656,1613.1,1613.0,42.04039]
[1744258910453,1.5562,1613.1,1613.0,1.24039]
[1744258910745,1.4995,1613.2,1613.1,1.24031]
[1744258910946,2.73974,1613.2,1613.1,45.24811]
[1744258911142,4.29594,1613.2,1613.1,45.24811]
[1744258911539,3.0557,1613.2,1613.1,45.24811]
[1744258912444,2.67458,1613.3,1613.2,1.24024]
[1744258912640,2.9642,1613.3,1613.2,2.82204]
[1744258912947,11.54410409,1613.4,1613.3,1.24016]
[1744258912948,7.07407409,1613.4,1613.3,1.24016]
[1744258913150,7.07407409,1613.4,1613.3,6.02976]
[1744258913340,7.07407409,1613.4,1613.3,46.82976]
[1744258913341,5.83399409,1613.4,1613.3,46.82976]
[1744258913746,13.05313323,1613.5,1613.4,1.24008]
[1744258913948,13.05313323,1613.5,1613.4,1.5818]
[1744258914144,1.24008,1613.4,1613.3,44.0078]
[1744258914444,2.76988,1613.4,1613.3,42.04016]
[1744258917845,2.76988,1613.4,1613.3,43.68726]
[1744258919037,2.76988,1613.4,1613.3,46.89506]
[1744258919237,1.5298,1613.4,1613.3,46.89506]
[1744258919848,4.26146,1613.5,1613.4,1.24008]
[1744258920050,5.91306,1613.5,1613.4,2.76168]
[1744258920246,4.673,1613.5,1613.4,2.76168]
[1744258920449,4.47,1613.6,1613.5,1.24001]
[1744258920645,7.08319,1613.7,1613.5,5.96941]
[1744258920851,7.08319,1613.7,1613.6,1.23993]
[1744258921051,8.61919,1613.7,1613.6,2.90343]
[1744258921255,1.23993,1613.6,1613.5,3.2078]
[1744258921463,1.24008,1613.4,1613.3,40.8]
[1744258921659,3.111,1613.5,1613.4,1.24008]
[1744258921859,2.77598,1613.6,1613.5,1.24001]
[1744258922060,4.31138,1613.6,1613.5,1.24001]
[1744258923073,4.31133,1613.6,1613.5,2.90351]
[1744258923256,5.84328,1613.7,1613.6,1.23993]
[1744258923457,5.84328,1613.7,1613.6,6.11123]
[1744258923660,0.00928591,1613.7,1613.6,6.11123]
[1744258925658,0.00928591,1613.7,1613.6,4.44773]
[1744258925865,1.24001,1613.5,1613.4,1.24006]
[1744258926465,1.24008,1613.5,1613.4,1.24006]
[1744258926664,2.78819,1613.6,1613.5,1.24001]
[1744258927264,1.5482,1613.6,1613.5,1.24001]
[1744258927464,1.5482,1613.6,1613.5,4.44781]
[1744258928159,0.00928591,1613.7,1613.6,1.23993]
[1744258928463,0.00928591,1613.7,1613.6,7.29063]
[1744258928665,0.00928591,1613.7,1613.6,19.74133]
[1744258929658,5.91e-06,1613.7,1613.6,19.74133]
[1744258930269,5.91e-06,1613.7,1613.6,14.74133]
[1744258930566,5.91e-06,1613.7,1613.6,19.74133]
[1744258931167,5.91e-06,1613.7,1613.6,14.74133]
[1744258933669,5.91e-06,1613.7,1613.6,19.74133]
[1744258934462,5.91e-06,1613.7,1613.6,13.74533]
[1744258935157,5.91e-06,1613.7,1613.6,8.74533]
[1744258935664,5.91e-06,1613.7,1613.6,13.74533]
[1744258937071,5.91e-06,1613.7,1613.6,19.74133]
[1744258937368,4.84681566,1614.3,1614.2,1.23947]
[1744258937562,4.84681566,1614.3,1614.2,8.91127]
[1744258937871,4.84681566,1614.3,1614.2,49.71127]
[1744258938476,4.84681566,1614.3,1614.2,56.27247]
[1744258938976,3.60032566,1614.3,1614.2,56.27247]
[1744258939682,3.60032566,1614.3,1614.2,51.27247]
[1744258940075,3.60961157,1614.4,1614.3,1.23939]
[1744258940271,3.60961157,1614.4,1614.3,2.84539]
[1744258940582,3.60961157,1614.4,1614.3,1.23939]
[1744258940881,8.10791157,1614.4,1614.3,1.23939]
[1744258941179,14.34723157,1614.4,1614.3,1.23939]
[1744258941476,8.10791157,1614.4,1614.3,1.23939]
[1744258941676,8.10791157,1614.4,1614.3,2.84539]
[1744258942578,8.10791157,1614.4,1614.3,1.23939]
[1744258943072,9.34723157,1614.4,1614.3,1.23939]
[1744258944381,1.23939,1614.3,1614.2,45.24721]
[1744258944572,1.5735,1614.3,1614.2,45.24721]
[1744258944872,7.81289,1614.3,1614.2,45.24721]
[1744258945078,7.81289,1614.3,1614.2,40.8]
[1744258945580,1.23947,1614.2,1614.1,0.00928591]
[1744258945784,2.77477,1614.2,1614.1,0.00928591]
[1744258945978,7.77477,1614.2,1614.1,40.80928591]
[1744258946379,13.60876409,1614.2,1614.1,0.00928591]
[1744258947572,12.36929409,1614.2,1614.1,1.24883591]
[1744258947770,1.5353,1614.2,1614.1,1.24883591]
[1744258948066,1.5353,1614.2,1614.1,42.04883591]
[1744258948284,1.5353,1614.2,1614.1,43.57833591]
[1744258949877,1.5353,1614.2,1614.1,42.04883591]
[1744258951587,6.58431157,1614.4,1614.3,1.23939]
[1744258951776,8.18021157,1614.4,1614.3,4.44719]
[1744258952082,4.57988591,1614.4,1614.3,4.44719]
[1744258953681,4.57988591,1614.4,1614.3,45.24719]
[1744258954383,5.81920591,1614.4,1614.3,45.24719]
[1744258954584,4.57988591,1614.4,1614.3,45.24719]
[1744258955086,5.81920591,1614.4,1614.3,45.24719]
[1744258955386,4.57988591,1614.4,1614.3,45.24719]
[1744258956386,5.81920591,1614.4,1614.3,45.24719]
[1744258958687,4.57988591,1614.4,1614.3,45.24719]
[1744258959885,5.81920591,1614.4,1614.3,45.24719]
[1744258960390,1.23947,1614.2,1614.1,0.00928591]
[1744258960784,1.23985,1613.7,1613.6,17.2085361]
[1744258961084,1.23985,1613.7,1613.6,51.5775961]
[1744258961290,3.09939,1613.9,1613.5,9.5377361]
[1744258961291,1.23993,1613.6,1613.5,9.5377361]
[1744258961491,2.76593,1613.6,1613.5,9.5377361]
[1744258961690,2.76593,1613.6,1613.5,50.3377361]
[1744258961691,7.76593,1613.6,1613.5,50.3377361]
[1744258962099,7.76593,1613.6,1613.5,9.5377361]
[1744258962299,2.76593,1613.6,1613.5,9.5377361]
[1744258962495,1.526,1613.6,1613.5,10.7777461]
[1744258962894,3.1009,1613.6,1613.5,10.7777461]
[1744258963797,4.34083,1613.6,1613.5,10.7777461]
[1744258963991,3.1009,1613.6,1613.5,10.7777461]
[1744258964192,4.34083,1613.6,1613.5,10.7777461]
[1744258964601,4.34083,1613.6,1613.5,1.24001]
[1744258964897,5.83399409,1613.8,1613.7,1.23985]
[1744258965095,1.23985,1613.7,1613.6,4.44767]
[1744258965289,1.6578,1613.7,1613.6,4.44767]
[1744258966301,2.89765,1613.7,1613.6,3.2078]
[1744258966596,2.89765,1613.7,1613.6,4.44773]
[1744258966898,1.6578,1613.7,1613.6,4.44773]
[1744258967102,1.23978,1613.8,1613.7,1.23978]
[1744258967294,2.76618,1613.8,1613.7,2.79488]
[1744258967895,13.07595409,1613.9,1613.8,1.23978]
[1744258968099,4.3043,1613.9,1613.8,1.23978]
[1744258968290,1.23985,1613.7,1613.6,3.2078]
[1744258968597,1.23993,1613.6,1613.5,1.23998]
[1744258968901,1.23998,1613.6,1613.5,1.23995]
[1744258969095,1.23998,1613.6,1613.5,2.79505]
[1744258970003,2.76633,1613.7,1613.6,1.23993]
[1744258970302,1.5264,1613.7,1613.6,1.23993]
[1744258970503,2.76625,1613.7,1613.6,4.44773]
[1744258972204,2.76625,1613.7,1613.6,1.23993]
[1744258973090,2.76625,1613.7,1613.6,1.5597]
[1744258973297,2.76625,1613.7,1613.6,2.79963]
[1744258974506,2.76625,1613.7,1613.6,1.23993]
[1744258974803,1.5264,1613.7,1613.6,1.23993]
[1744258975005,2.76625,1613.7,1613.6,2.79963]
[1744258975500,5.83399409,1613.8,1613.7,1.23985]
[1744258975696,7.07377409,1613.8,1613.7,1.5486]
[1744258975901,7.07377409,1613.8,1613.6,1.4657]
[1744258975902,1.23985,1613.7,1613.6,1.23988]
[1744258976095,2.87815,1613.7,1613.6,1.23988]
[1744258976706,2.87815,1613.7,1613.6,2.78848]
[1744258977098,1.6383,1613.7,1613.6,2.78848]
[1744258977510,2.87815,1613.7,1613.6,2.78848]
[1744258977807,1.6383,1613.7,1613.6,2.78848]
[1744258978102,5.83399409,1613.8,1613.7,1.23985]
[1744258978308,9.98506323,1614.0,1613.9,1.2397]
[1744258978605,8.74539323,1614.0,1613.9,4.4475]
[1744258978905,7.26189323,1614.0,1613.9,6.0853]
[1744258980109,7.26189323,1614.0,1613.9,11.0853]
[1744258980303,7.26189323,1614.0,1613.9,6.0853]
[1744258982003,8.50151323,1614.0,1613.9,3.2078]
[1744258982209,1.23985,1613.7,1613.6,2.82453]
[1744258982403,1.23983,1613.8,1613.7,1.23982]
[1744258982607,2.90413,1613.8,1613.7,1.23982]
[1744258983008,1.6643,1613.8,1613.7,2.82442]
[1744258983212,1.6643,1613.8,1613.7,1.23985]
[1744258983412,3.1809,1613.8,1613.6,4.7924]
[1744258983706,1.23985,1613.7,1613.6,6.03228]
[1744258983911,1.23993,1613.6,1613.5,1.23996]
[1744258984111,1.23993,1613.6,1613.5,2.82456]
[1744258985408,1.23993,1613.6,1613.5,1.23996]
[1744258986416,1.6643,1613.7,1613.6,1.23993]
[1744258986607,1.6643,1613.7,1613.6,4.44773]
[1744258986807,2.90415,1613.7,1613.6,4.44773]
[1744258987410,2.90415,1613.7,1613.6,3.2078]
[1744258987715,1.24001,1613.5,1613.4,42.04936591]
[1744258988316,2.90351,1613.5,1613.4,42.04936591]
[1744258989214,2.90351,1613.5,1613.4,40.80928591]